[Event "Titled Tuesday Blitz May 10 Early 2022"]
[White "Tuleyeva-Aketayeva, Dana"]
[Black "Miszler, Levente"]
[WhiteFideId "13701932"]
[BlackFideId "763276"]
[WhiteElo "1875"]
[BlackElo "1966"]
[Result "1/2-1/2"]
[Round "06"]
[TimeControl "180+1"]
[Date "2022.05.11"]
[WhiteClock "0:00:20"]
[BlackClock "0:00:25"]

1. d4 {[%clk 0:03:00]}  Nf6 {[%clk 0:02:58]} 2. Nf3 {[%clk 0:03:01]}  g6 {[%clk 0:02:58]} 3. g3 {[%clk 0:03:01]}  Bg7 {[%clk 0:02:59]} 4. Bg2 {[%clk 0:03:01]}  O-O {[%clk 0:02:59]} 5. O-O {[%clk 0:03:02]}  d6 {[%clk 0:03:00]} 6. c4 {[%clk 0:03:02]}  Nbd7 {[%clk 0:03:01]} 7. Nc3 {[%clk 0:03:02]}  e5 {[%clk 0:03:01]} 8. dxe5 {[%clk 0:03:02]}  dxe5 {[%clk 0:03:01]} 9. Bg5 {[%clk 0:03:02]}  c6 {[%clk 0:03:00]} 10. Ne4 {[%clk 0:03:00]}  h6 {[%clk 0:02:57]} 11. Bxf6 {[%clk 0:02:50]}  Nxf6 {[%clk 0:02:54]} 12. Nd6 {[%clk 0:02:31]}  Qe7 {[%clk 0:02:45]} 13. Nxc8 {[%clk 0:02:22]}  Raxc8 {[%clk 0:02:46]} 14. Qb3 {[%clk 0:02:22]}  Rfd8 {[%clk 0:02:40]} 15. Rfd1 {[%clk 0:02:21]}  e4 {[%clk 0:02:33]} 16. Ne1 {[%clk 0:02:19]}  b6 {[%clk 0:02:25]} 17. Bh3 {[%clk 0:02:16]}  Rb8 {[%clk 0:02:23]} 18. Nc2 {[%clk 0:02:09]}  Nd7 {[%clk 0:02:15]} 19. Bxd7 {[%clk 0:01:42]}  Rxd7 {[%clk 0:02:15]} 20. Ne3 {[%clk 0:01:43]}  Rbd8 {[%clk 0:02:13]} 21. Rxd7 {[%clk 0:01:36]}  Rxd7 {[%clk 0:02:13]} 22. Rd1 {[%clk 0:01:35]}  Bd4 {[%clk 0:02:07]} 23. Kg2 {[%clk 0:01:26]}  Qc5 {[%clk 0:01:55]} 24. Ng4 {[%clk 0:00:55]}  Qg5 {[%clk 0:01:31]} 25. e3 {[%clk 0:00:46]}  Qxg4 {[%clk 0:01:16]} 26. exd4 {[%clk 0:00:46]}  Qe2 {[%clk 0:01:13]} 27. d5 {[%clk 0:00:38]}  e3 {[%clk 0:01:04]} 28. Rf1 {[%clk 0:00:20]}  exf2 {[%clk 0:01:01]} 29. Rxf2 {[%clk 0:00:20]}  Qe4+ {[%clk 0:01:01]} 30. Qf3 {[%clk 0:00:20]}  Qxf3+ {[%clk 0:01:00]} 31. Kxf3 {[%clk 0:00:20]}  cxd5 {[%clk 0:00:58]} 32. Rd2 {[%clk 0:00:20]}  Kf8 {[%clk 0:00:58]} 33. cxd5 {[%clk 0:00:19]}  Ke7 {[%clk 0:00:58]} 34. Ke4 {[%clk 0:00:20]}  Kd6 {[%clk 0:00:58]} 35. Kd4 {[%clk 0:00:20]}  Rc7 {[%clk 0:00:54]} 36. Rf2 {[%clk 0:00:20]}  f5 {[%clk 0:00:53]} 37. Re2 {[%clk 0:00:20]}  Kd7 {[%clk 0:00:25]} 38. Re6 {[%clk 0:00:20]}  Rc2 {[%clk 0:00:25]} 39. Rxg6 {[%clk 0:00:20]}  Rxh2 {[%clk 0:00:24]} 40. Rg7+ {[%clk 0:00:19]}  Kd6 {[%clk 0:00:24]} 41. Rg6+ {[%clk 0:00:19]}  Kd7 {[%clk 0:00:24]} 42. Rg7+ {[%clk 0:00:20]}  Kd6 {[%clk 0:00:24]} 43. Rg6+ {[%clk 0:00:20]}  Kd7 {[%clk 0:00:25]} 1/2-1/2


[Site "https://www.chess.com"]

[Event "Titled Tuesday Blitz May 10 Early 2022"]
[White "Turutin, Alexander"]
[Black "Estrada Nieto, Julian"]
[WhiteFideId "4180623"]
[BlackFideId "5101018"]
[WhiteElo "2402"]
[BlackElo "2252"]
[Result "1-0"]
[Round "06"]
[TimeControl "180+1"]
[Date "2022.05.11"]
[WhiteClock "0:00:44"]
[BlackClock "0:00:07"]

1. e4 {[%clk 0:02:57]}  e5 {[%clk 0:02:58]} 2. Nf3 {[%clk 0:02:56]}  Nc6 {[%clk 0:02:58]} 3. Bb5 {[%clk 0:02:56]}  a6 {[%clk 0:02:58]} 4. Ba4 {[%clk 0:02:56]}  Nf6 {[%clk 0:02:59]} 5. O-O {[%clk 0:02:56]}  Be7 {[%clk 0:02:59]} 6. Re1 {[%clk 0:02:56]}  b5 {[%clk 0:03:00]} 7. Bb3 {[%clk 0:02:57]}  d6 {[%clk 0:03:00]} 8. c3 {[%clk 0:02:57]}  O-O {[%clk 0:03:00]} 9. h3 {[%clk 0:02:58]}  Bb7 {[%clk 0:03:00]} 10. d4 {[%clk 0:02:58]}  Re8 {[%clk 0:03:01]} 11. Nbd2 {[%clk 0:02:56]}  Bf8 {[%clk 0:03:01]} 12. Bc2 {[%clk 0:02:49]}  h6 {[%clk 0:02:59]} 13. a3 {[%clk 0:02:48]}  Nb8 {[%clk 0:02:53]} 14. b4 {[%clk 0:02:46]}  Nbd7 {[%clk 0:02:49]} 15. Bb2 {[%clk 0:02:45]}  c6 {[%clk 0:02:21]} 16. c4 {[%clk 0:02:41]}  Qc7 {[%clk 0:02:18]} 17. cxb5 {[%clk 0:02:20]}  axb5 {[%clk 0:02:16]} 18. Bd3 {[%clk 0:02:11]}  Qb6 {[%clk 0:02:12]} 19. Qb3 {[%clk 0:02:11]}  Rab8 {[%clk 0:01:36]} 20. Qa2 {[%clk 0:02:01]}  Ra8 {[%clk 0:01:33]} 21. Bc2 {[%clk 0:01:46]}  c5 {[%clk 0:01:30]} 22. bxc5 {[%clk 0:01:45]}  dxc5 {[%clk 0:01:30]} 23. dxe5 {[%clk 0:01:45]}  Nh7 {[%clk 0:01:24]} 24. Qb1 {[%clk 0:01:27]}  g6 {[%clk 0:01:13]} 25. h4 {[%clk 0:01:26]}  h5 {[%clk 0:01:10]} 26. Bc3 {[%clk 0:01:21]}  Bg7 {[%clk 0:01:08]} 27. Qb2 {[%clk 0:01:19]}  Re6 {[%clk 0:00:53]} 28. Red1 {[%clk 0:01:10]}  Rae8 {[%clk 0:00:52]} 29. Nc4 {[%clk 0:01:09]}  bxc4 {[%clk 0:00:41]} 30. Rxd7 {[%clk 0:01:09]}  Qxb2 {[%clk 0:00:40]} 31. Bxb2 {[%clk 0:01:10]}  Bc6 {[%clk 0:00:37]} 32. Rc7 {[%clk 0:01:09]}  Rb8 {[%clk 0:00:31]} 33. Bc3 {[%clk 0:01:08]}  Nf8 {[%clk 0:00:30]} 34. a4 {[%clk 0:01:06]}  Ba8 {[%clk 0:00:25]} 35. Ng5 {[%clk 0:01:00]}  Bxe5 {[%clk 0:00:24]} 36. Bxe5 {[%clk 0:00:56]}  Rxe5 {[%clk 0:00:24]} 37. Nxf7 {[%clk 0:00:57]}  Ne6 {[%clk 0:00:23]} 38. Ra7 {[%clk 0:00:48]}  Nd4 {[%clk 0:00:23]} 39. Nxe5 {[%clk 0:00:45]}  Nxc2 {[%clk 0:00:22]} 40. Rc1 {[%clk 0:00:45]}  Bxe4 {[%clk 0:00:18]} 41. Nd7 {[%clk 0:00:44]}  Rb2 {[%clk 0:00:17]} 42. Nf6+ {[%clk 0:00:44]}  Kf8 {[%clk 0:00:15]} 43. Nxe4 {[%clk 0:00:44]}  Nd4 {[%clk 0:00:09]} 44. Rxc4 {[%clk 0:00:44]}  Ne2+ {[%clk 0:00:09]} 45. Kh2 {[%clk 0:00:44]}  Nf4 {[%clk 0:00:07]} 46. Rxc5 {[%clk 0:00:44]} 1-0


[Site "https://www.chess.com"]

[Event "Titled Tuesday Blitz May 10 Early 2022"]
[White "Xiong, Jeffery"]
[Black "Bacrot, Etienne"]
[WhiteFideId "2047640"]
[BlackFideId "605506"]
[WhiteElo "2727"]
[BlackElo "2673"]
[Result "1/2-1/2"]
[Round "06"]
[TimeControl "180+1"]
[Date "2022.05.10"]
[WhiteClock "0:00:06"]
[BlackClock "0:00:07"]

1. e4 {[%clk 0:03:00]}  c5 {[%clk 0:02:59]} 2. f3 {[%clk 0:03:00]}  Nc6 {[%clk 0:02:58]} 3. c3 {[%clk 0:03:00]}  d5 {[%clk 0:02:58]} 4. d4 {[%clk 0:02:48]}  e6 {[%clk 0:02:38]} 5. Be3 {[%clk 0:02:40]}  cxd4 {[%clk 0:02:22]} 6. cxd4 {[%clk 0:02:40]}  dxe4 {[%clk 0:02:22]} 7. fxe4 {[%clk 0:02:38]}  Qh4+ {[%clk 0:02:20]} 8. Kd2 {[%clk 0:02:34]}  Qxe4 {[%clk 0:02:08]} 9. Nc3 {[%clk 0:02:34]}  Bb4 {[%clk 0:02:06]} 10. Nf3 {[%clk 0:02:31]}  Nf6 {[%clk 0:02:03]} 11. Bd3 {[%clk 0:02:31]}  Qg4 {[%clk 0:02:02]} 12. Qe2 {[%clk 0:02:31]}  O-O {[%clk 0:01:57]} 13. h3 {[%clk 0:02:30]}  Qg3 {[%clk 0:01:53]} 14. Kc2 {[%clk 0:02:08]}  Bd7 {[%clk 0:01:49]} 15. Rac1 {[%clk 0:02:04]}  Bxc3 {[%clk 0:01:43]} 16. bxc3 {[%clk 0:02:05]}  Rfc8 {[%clk 0:01:42]} 17. Kb1 {[%clk 0:02:05]}  Ne7 {[%clk 0:01:25]} 18. c4 {[%clk 0:02:03]}  Bc6 {[%clk 0:01:23]} 19. Ka1 {[%clk 0:01:43]}  Be4 {[%clk 0:01:14]} 20. Bxe4 {[%clk 0:01:42]}  Nxe4 {[%clk 0:01:14]} 21. Rhf1 {[%clk 0:01:36]}  Nf5 {[%clk 0:01:14]} 22. Bg1 {[%clk 0:01:36]}  Nf6 {[%clk 0:00:47]} 23. Bh2 {[%clk 0:01:36]}  Qg6 {[%clk 0:00:20]} 24. g4 {[%clk 0:01:36]}  Ne7 {[%clk 0:00:20]} 25. Ne5 {[%clk 0:01:32]}  Qe4 {[%clk 0:00:12]} 26. Qxe4 {[%clk 0:01:30]}  Nxe4 {[%clk 0:00:13]} 27. Rxf7 {[%clk 0:01:30]}  Nc6 {[%clk 0:00:13]} 28. Rxb7 {[%clk 0:01:30]}  Nxd4 {[%clk 0:00:14]} 29. Nd3 {[%clk 0:01:23]}  Nc6 {[%clk 0:00:08]} 30. Nf4 {[%clk 0:01:17]}  e5 {[%clk 0:00:07]} 31. Ne6 {[%clk 0:01:14]}  Rab8 {[%clk 0:00:06]} 32. Rxg7+ {[%clk 0:00:58]}  Kh8 {[%clk 0:00:07]} 33. Rd7 {[%clk 0:00:59]}  Rb4 {[%clk 0:00:05]} 34. Rf1 {[%clk 0:00:43]}  Rcb8 {[%clk 0:00:05]} 35. Nd8 {[%clk 0:00:26]}  Rxd8 {[%clk 0:00:04]} 36. Rxd8+ {[%clk 0:00:27]}  Nxd8 {[%clk 0:00:04]} 37. Rf8+ {[%clk 0:00:27]}  Kg7 {[%clk 0:00:04]} 38. Rxd8 {[%clk 0:00:28]}  Kf7 {[%clk 0:00:05]} 39. Bxe5 {[%clk 0:00:28]}  Rxc4 {[%clk 0:00:05]} 40. Kb2 {[%clk 0:00:25]}  Nf2 {[%clk 0:00:05]} 41. Rh8 {[%clk 0:00:17]}  Kg6 {[%clk 0:00:04]} 42. Rg8+ {[%clk 0:00:17]}  Kf7 {[%clk 0:00:03]} 43. Rh8 {[%clk 0:00:17]}  Kg6 {[%clk 0:00:03]} 44. Rg8+ {[%clk 0:00:11]}  Kf7 {[%clk 0:00:04]} 45. Rg7+ {[%clk 0:00:12]}  Ke6 {[%clk 0:00:04]} 46. Bc3 {[%clk 0:00:13]}  Nxh3 {[%clk 0:00:04]} 47. Rxh7 {[%clk 0:00:13]}  Nf2 {[%clk 0:00:05]} 48. Rh6+ {[%clk 0:00:11]}  Kd7 {[%clk 0:00:03]} 49. Kb3 {[%clk 0:00:10]}  Rxg4 {[%clk 0:00:03]} 50. Ra6 {[%clk 0:00:11]}  Kc7 {[%clk 0:00:03]} 51. Rxa7+ {[%clk 0:00:12]}  Kb8 {[%clk 0:00:03]} 52. Rd7 {[%clk 0:00:11]}  Ne4 {[%clk 0:00:03]} 53. Bd4 {[%clk 0:00:11]}  Rg3+ {[%clk 0:00:02]} 54. Kc4 {[%clk 0:00:11]}  Rg4 {[%clk 0:00:03]} 55. Kb5 {[%clk 0:00:10]}  Kc8 {[%clk 0:00:03]} 56. Rd5 {[%clk 0:00:09]}  Rg5 {[%clk 0:00:03]} 57. Rxg5 {[%clk 0:00:03]}  Nxg5 {[%clk 0:00:03]} 58. Kc6 {[%clk 0:00:04]}  Kb8 {[%clk 0:00:02]} 59. Kd5 {[%clk 0:00:03]}  Nf3 {[%clk 0:00:01]} 60. Bc3 {[%clk 0:00:03]}  Kb7 {[%clk 0:00:01]} 61. a4 {[%clk 0:00:04]}  Ka6 {[%clk 0:00:02]} 62. Kc4 {[%clk 0:00:05]}  Kb7 {[%clk 0:00:01]} 63. Kd5 {[%clk 0:00:05]}  Ka8 {[%clk 0:00:02]} 64. Kc6 {[%clk 0:00:06]}  Nh4 {[%clk 0:00:02]} 65. Bd4 {[%clk 0:00:06]}  Ng6 {[%clk 0:00:03]} 66. Kd6 {[%clk 0:00:06]}  Nf8 {[%clk 0:00:04]} 67. Be3 {[%clk 0:00:05]}  Ng6 {[%clk 0:00:04]} 68. Bg5 {[%clk 0:00:05]}  Nh4 {[%clk 0:00:05]} 69. Bxh4 {[%clk 0:00:04]}  Ka7 {[%clk 0:00:05]} 70. Be1 {[%clk 0:00:05]}  Ka8 {[%clk 0:00:06]} 71. Kc7 {[%clk 0:00:05]}  Ka7 {[%clk 0:00:06]} 72. a5 {[%clk 0:00:05]}  Ka8 {[%clk 0:00:07]} 73. Bf2 {[%clk 0:00:06]} 1/2-1/2


[Site "https://www.chess.com"]

[Event "Titled Tuesday Blitz May 10 Early 2022"]
[White "Yilmaz, Mustafa"]
[Black "Andreikin, Dmitry"]
[WhiteFideId "6302718"]
[BlackFideId "4158814"]
[WhiteElo "2568"]
[BlackElo "2736"]
[Result "1-0"]
[Round "06"]
[TimeControl "180+1"]
[Date "2022.05.10"]
[WhiteClock "0:00:40"]
[BlackClock "0:00:55"]

1. d4 {[%clk 0:03:00]}  d5 {[%clk 0:03:00]} 2. c4 {[%clk 0:03:01]}  e6 {[%clk 0:03:00]} 3. Nc3 {[%clk 0:03:01]}  a6 {[%clk 0:03:01]} 4. cxd5 {[%clk 0:03:00]}  exd5 {[%clk 0:03:02]} 5. Nf3 {[%clk 0:02:58]}  Nf6 {[%clk 0:03:02]} 6. Bg5 {[%clk 0:02:58]}  Be6 {[%clk 0:03:03]} 7. e3 {[%clk 0:02:54]}  Nbd7 {[%clk 0:03:03]} 8. h3 {[%clk 0:02:53]}  Bd6 {[%clk 0:03:02]} 9. Bd3 {[%clk 0:02:54]}  c6 {[%clk 0:03:02]} 10. Bf4 {[%clk 0:02:54]}  Qb8 {[%clk 0:03:01]} 11. Bxd6 {[%clk 0:02:45]}  Qxd6 {[%clk 0:03:01]} 12. O-O {[%clk 0:02:46]}  O-O {[%clk 0:03:01]} 13. Qb3 {[%clk 0:02:46]}  Rfe8 {[%clk 0:03:00]} 14. a4 {[%clk 0:02:43]}  a5 {[%clk 0:02:54]} 15. Qa3 {[%clk 0:02:43]}  Qb8 {[%clk 0:02:50]} 16. b4 {[%clk 0:02:41]}  axb4 {[%clk 0:02:33]} 17. Qxb4 {[%clk 0:02:42]}  Nf8 {[%clk 0:02:33]} 18. Rfb1 {[%clk 0:02:31]}  Ra7 {[%clk 0:02:28]} 19. Ne5 {[%clk 0:02:31]}  Ng6 {[%clk 0:02:28]} 20. Nxc6 {[%clk 0:02:30]}  Qc7 {[%clk 0:02:13]} 21. Nxa7 {[%clk 0:02:25]}  Bxh3 {[%clk 0:02:13]} 22. Nab5 {[%clk 0:02:07]}  Qc8 {[%clk 0:02:05]} 23. Qd6 {[%clk 0:01:28]}  Bxg2 {[%clk 0:02:02]} 24. Bxg6 {[%clk 0:01:07]}  Bf3 {[%clk 0:01:20]} 25. Qg3 {[%clk 0:01:04]}  fxg6 {[%clk 0:01:04]} 26. Qxf3 {[%clk 0:01:04]}  Rf8 {[%clk 0:01:05]} 27. Nxd5 {[%clk 0:01:02]}  Kh8 {[%clk 0:01:01]} 28. Rc1 {[%clk 0:00:59]}  Qd8 {[%clk 0:00:56]} 29. Nxf6 {[%clk 0:00:57]}  Rxf6 {[%clk 0:00:57]} 30. Qxb7 {[%clk 0:00:55]}  Rf8 {[%clk 0:00:57]} 31. Qg2 {[%clk 0:00:48]}  h5 {[%clk 0:00:57]} 32. a5 {[%clk 0:00:47]}  Rf5 {[%clk 0:00:55]} 33. Rc5 {[%clk 0:00:40]} 1-0


[Site "https://www.chess.com"]

[Event "Titled Tuesday Blitz May 10 Early 2022"]
[White "Yuan, Qingyu"]
[Black "Visakh N R"]
[WhiteFideId "8609772"]
[BlackFideId "25012223"]
[WhiteElo "2359"]
[BlackElo "2448"]
[Result "1/2-1/2"]
[Round "06"]
[TimeControl "180+1"]
[Date "2022.05.10"]
[WhiteClock "0:00:42"]
[BlackClock "0:01:49"]

1. e4 {[%clk 0:03:00]}  c5 {[%clk 0:02:56]} 2. Nf3 {[%clk 0:03:00]}  d6 {[%clk 0:02:56]} 3. Bb5+ {[%clk 0:03:00]}  Bd7 {[%clk 0:02:52]} 4. c4 {[%clk 0:03:00]}  g6 {[%clk 0:02:51]} 5. Nc3 {[%clk 0:02:58]}  Bg7 {[%clk 0:02:51]} 6. O-O {[%clk 0:02:48]}  Nf6 {[%clk 0:02:49]} 7. Bxd7+ {[%clk 0:02:44]}  Nfxd7 {[%clk 0:02:49]} 8. d4 {[%clk 0:02:44]}  cxd4 {[%clk 0:02:50]} 9. Nxd4 {[%clk 0:02:44]}  Nc6 {[%clk 0:02:49]} 10. Be3 {[%clk 0:02:43]}  O-O {[%clk 0:02:49]} 11. Rc1 {[%clk 0:02:41]}  Nde5 {[%clk 0:02:49]} 12. b3 {[%clk 0:02:39]}  Rc8 {[%clk 0:02:41]} 13. h3 {[%clk 0:02:36]}  a6 {[%clk 0:02:38]} 14. Nd5 {[%clk 0:01:59]}  Nd7 {[%clk 0:02:36]} 15. Qd2 {[%clk 0:01:55]}  e6 {[%clk 0:02:27]} 16. Bg5 {[%clk 0:01:37]}  Nf6 {[%clk 0:02:19]} 17. Nxf6+ {[%clk 0:01:29]}  Bxf6 {[%clk 0:02:18]} 18. Bxf6 {[%clk 0:01:29]}  Qxf6 {[%clk 0:02:19]} 19. Nxc6 {[%clk 0:01:23]}  Rxc6 {[%clk 0:02:20]} 20. Rfd1 {[%clk 0:01:20]}  Rfc8 {[%clk 0:02:19]} 21. a4 {[%clk 0:01:18]}  Qe5 {[%clk 0:02:14]} 22. Qe3 {[%clk 0:01:15]}  b5 {[%clk 0:02:08]} 23. cxb5 {[%clk 0:01:04]}  axb5 {[%clk 0:02:09]} 24. Rxc6 {[%clk 0:00:51]}  Rxc6 {[%clk 0:02:10]} 25. Qd4 {[%clk 0:00:44]}  Qxd4 {[%clk 0:01:48]} 26. Rxd4 {[%clk 0:00:44]}  Rc1+ {[%clk 0:01:49]} 27. Kh2 {[%clk 0:00:44]}  bxa4 {[%clk 0:01:50]} 28. bxa4 {[%clk 0:00:42]}  Ra1 {[%clk 0:01:50]} 29. Rxd6 {[%clk 0:00:42]}  Rxa4 {[%clk 0:01:50]} 30. f3 {[%clk 0:00:42]}  h5 {[%clk 0:01:49]} 31. h4 {[%clk 0:00:42]} 1/2-1/2


[Site "https://www.chess.com"]

[Event "Titled Tuesday Blitz May 10 Early 2022"]
[White "Agasarov, Benik"]
[Black "Toncheva, Nadya"]
[WhiteFideId "13314823"]
[BlackFideId "2924056"]
[WhiteElo "2573"]
[BlackElo "1888"]
[Result "1-0"]
[Round "07"]
[TimeControl "180+1"]
[Date "2022.05.11"]
[WhiteClock "0:00:11"]
[BlackClock "0:00:01"]

1. Nf3 {[%clk 0:03:00]}  c5 {[%clk 0:03:00]} 2. g3 {[%clk 0:02:55]}  Nc6 {[%clk 0:03:00]} 3. Bg2 {[%clk 0:02:55]}  g6 {[%clk 0:02:59]} 4. O-O {[%clk 0:02:56]}  Bg7 {[%clk 0:03:00]} 5. c3 {[%clk 0:02:53]}  e6 {[%clk 0:02:58]} 6. d4 {[%clk 0:02:52]}  cxd4 {[%clk 0:02:58]} 7. cxd4 {[%clk 0:02:52]}  Nge7 {[%clk 0:02:58]} 8. Nc3 {[%clk 0:02:52]}  d5 {[%clk 0:02:58]} 9. Bf4 {[%clk 0:02:44]}  a6 {[%clk 0:02:53]} 10. Qd2 {[%clk 0:02:39]}  Nf5 {[%clk 0:02:48]} 11. e3 {[%clk 0:02:31]}  O-O {[%clk 0:02:40]} 12. g4 {[%clk 0:02:28]}  Nd6 {[%clk 0:02:39]} 13. Bxd6 {[%clk 0:02:28]}  Qxd6 {[%clk 0:02:39]} 14. h3 {[%clk 0:02:28]}  b5 {[%clk 0:02:36]} 15. e4 {[%clk 0:02:27]}  b4 {[%clk 0:02:23]} 16. Ne2 {[%clk 0:02:23]}  dxe4 {[%clk 0:02:21]} 17. Ng5 {[%clk 0:02:21]}  f5 {[%clk 0:02:12]} 18. h4 {[%clk 0:01:47]}  Nxd4 {[%clk 0:01:58]} 19. Nxd4 {[%clk 0:01:45]}  Qxd4 {[%clk 0:01:58]} 20. Qxd4 {[%clk 0:01:43]}  Bxd4 {[%clk 0:01:59]} 21. Rad1 {[%clk 0:01:42]}  e5 {[%clk 0:01:57]} 22. Kh1 {[%clk 0:01:35]}  h6 {[%clk 0:01:43]} 23. Nh3 {[%clk 0:01:35]}  Be6 {[%clk 0:01:40]} 24. Ng1 {[%clk 0:01:31]}  Bxa2 {[%clk 0:01:37]} 25. Rd2 {[%clk 0:01:23]}  Rfd8 {[%clk 0:01:31]} 26. Ne2 {[%clk 0:01:21]}  Bc4 {[%clk 0:01:25]} 27. Rfd1 {[%clk 0:01:19]}  Bxe2 {[%clk 0:01:17]} 28. Rxe2 {[%clk 0:01:19]}  Rac8 {[%clk 0:01:15]} 29. f3 {[%clk 0:01:18]}  e3 {[%clk 0:01:13]} 30. gxf5 {[%clk 0:01:17]}  gxf5 {[%clk 0:01:14]} 31. Bh3 {[%clk 0:01:18]}  Rf8 {[%clk 0:01:03]} 32. f4 {[%clk 0:01:16]}  Rcd8 {[%clk 0:00:39]} 33. Rg1+ {[%clk 0:01:05]}  Kh7 {[%clk 0:00:30]} 34. Rc2 {[%clk 0:00:36]}  Rd7 {[%clk 0:00:24]} 35. fxe5 {[%clk 0:00:31]}  Bxe5 {[%clk 0:00:20]} 36. Rc5 {[%clk 0:00:31]}  Re7 {[%clk 0:00:21]} 37. Bf1 {[%clk 0:00:23]}  Bd4 {[%clk 0:00:19]} 38. Rd5 {[%clk 0:00:23]}  Ba7 {[%clk 0:00:16]} 39. Be2 {[%clk 0:00:20]}  Rff7 {[%clk 0:00:12]} 40. Rd6 {[%clk 0:00:20]}  Rd7 {[%clk 0:00:08]} 41. Rxa6 {[%clk 0:00:17]}  Rd2 {[%clk 0:00:08]} 42. Bh5 {[%clk 0:00:14]}  Re7 {[%clk 0:00:03]} 43. Bg6+ {[%clk 0:00:13]}  Kh8 {[%clk 0:00:04]} 44. Bxf5 {[%clk 0:00:12]}  Rd6 {[%clk 0:00:01]} 45. Rxd6 {[%clk 0:00:12]}  Rg7 {[%clk 0:00:01]} 46. Rd8+ {[%clk 0:00:11]} 1-0


[Site "https://www.chess.com"]

[Event "Titled Tuesday Blitz May 10 Early 2022"]
[White "Ajay Krishna, S"]
[Black "Hua, Lefong"]
[WhiteFideId "5096430"]
[BlackFideId "2602253"]
[WhiteElo "2247"]
[BlackElo "2608"]
[Result "1-0"]
[Round "07"]
[TimeControl "180+1"]
[Date "2022.05.11"]
[WhiteClock "0:01:04"]
[BlackClock "0:00:58"]

1. d4 {[%clk 0:03:00]}  Nf6 {[%clk 0:02:54]} 2. c4 {[%clk 0:02:59]}  g6 {[%clk 0:02:52]} 3. Nf3 {[%clk 0:02:59]}  Bg7 {[%clk 0:02:52]} 4. g3 {[%clk 0:02:59]}  O-O {[%clk 0:02:52]} 5. Bg2 {[%clk 0:03:00]}  d6 {[%clk 0:02:53]} 6. O-O {[%clk 0:03:00]}  Nc6 {[%clk 0:02:53]} 7. Nc3 {[%clk 0:02:52]}  a6 {[%clk 0:02:53]} 8. d5 {[%clk 0:02:46]}  Na5 {[%clk 0:02:51]} 9. Nd2 {[%clk 0:02:46]}  c5 {[%clk 0:02:50]} 10. Qc2 {[%clk 0:02:46]}  Rb8 {[%clk 0:02:49]} 11. b3 {[%clk 0:02:45]}  b5 {[%clk 0:02:48]} 12. Bb2 {[%clk 0:02:41]}  e6 {[%clk 0:02:48]} 13. e4 {[%clk 0:02:25]}  exd5 {[%clk 0:02:46]} 14. cxd5 {[%clk 0:02:23]}  Re8 {[%clk 0:02:43]} 15. Rae1 {[%clk 0:02:21]}  Bd7 {[%clk 0:02:42]} 16. h3 {[%clk 0:02:20]}  b4 {[%clk 0:02:41]} 17. Nd1 {[%clk 0:02:18]}  Bb5 {[%clk 0:02:41]} 18. Nc4 {[%clk 0:02:16]}  Bxc4 {[%clk 0:02:31]} 19. bxc4 {[%clk 0:02:16]}  Nd7 {[%clk 0:02:15]} 20. f4 {[%clk 0:02:15]}  Bxb2 {[%clk 0:02:11]} 21. Nxb2 {[%clk 0:02:11]}  b3 {[%clk 0:02:11]} 22. axb3 {[%clk 0:02:11]}  Nxb3 {[%clk 0:02:12]} 23. Nd3 {[%clk 0:02:07]}  Nd4 {[%clk 0:02:12]} 24. Qd1 {[%clk 0:02:04]}  Qc7 {[%clk 0:02:07]} 25. h4 {[%clk 0:01:42]}  Rb3 {[%clk 0:01:58]} 26. h5 {[%clk 0:01:41]}  Rc3 {[%clk 0:01:53]} 27. hxg6 {[%clk 0:01:40]}  hxg6 {[%clk 0:01:54]} 28. f5 {[%clk 0:01:36]}  Ne5 {[%clk 0:01:43]} 29. Nf4 {[%clk 0:01:30]}  Rxg3 {[%clk 0:01:38]} 30. fxg6 {[%clk 0:01:28]}  Nxg6 {[%clk 0:01:37]} 31. Nh5 {[%clk 0:01:28]}  Rg5 {[%clk 0:01:20]} 32. Nf6+ {[%clk 0:01:26]}  Kf8 {[%clk 0:01:20]} 33. Nh7+ {[%clk 0:01:22]}  Kg8 {[%clk 0:01:11]} 34. Nxg5 {[%clk 0:01:23]}  Re7 {[%clk 0:01:10]} 35. Qh5 {[%clk 0:01:20]}  Nf8 {[%clk 0:01:10]} 36. Re3 {[%clk 0:01:17]}  f6 {[%clk 0:01:01]} 37. Rh3 {[%clk 0:01:13]}  Ne2+ {[%clk 0:00:58]} 38. Qxe2 {[%clk 0:01:12]}  fxg5 {[%clk 0:00:58]} 39. Qh5 {[%clk 0:01:04]} 1-0


[Site "https://www.chess.com"]